Workbook

Sheet Rebate Analysis
A1: WM Skagit County | G1: WM Skagit County
A2: 2016 - 2017 Rebate Calculation | G2: 2015 - 2016 Rebate Calculation
A5: Residential | G5: Residential
D7: Commodity | E7: Total | J7: Commodity | K7: Total
C8: Customers | D8: Credit | E8: Credits | I8: Customers | J8: Credit | K8: Credits
A9: Projected Revenue May 2015-Apr 2016 | G9: Projected Revenue May 2014-Apr 2015
A10: May - June projected value without adjustment factor | C10: =+Customers!C21+Customers!D21 -> 17149 | D10: =+J11 -> 2.37 | E10: =C10*D10 -> 40643.13 | G10: May - June projected value without adjustment factor | I10: 16396 | J10: 2.67 | K10: =I10*J10 -> 43777.32
A11: July - April projected value without adjustment factor | C11: =SUM(Customers!E21:N21) -> 87893 | D11: =+L26 -> 2.32070647 | E11: =C11*D11 -> 203973.8538 | G11: July - April projected value without adjustment factor | I11: 82912 | J11: 2.37 | K11: =I11*J11 -> 196501.44
A12: Total | C12: =SUM(C10:C11) -> 105042 | E12: =SUM(E10:E11) -> 244616.9838 | G12: Total | I12: =SUM(I10:I11) -> 99308 | K12: =SUM(K10:K11) -> 240278.76
A14: Actual Commodity Revenue (adj. to reflect current customers) | E14: =+'Commodity Revenue'!Y40 -> 183627.2824 | G14: Actual Commodity Revenue (adj. to reflect current customers) | K14: 234150
A16: Owe Customer (company) | E16: =E14-E12 -> -60989.70133 | G16: Owe Customer (company) | K16: -6548
A18: Total Customers | E18: =+C12 -> 105042 | G18: Total Customers | K18: =+I12 -> 99308
A21: Adjust for Under/(Over) payment in 2015-2016 | F21: =+E66 -> -0.65 | G21: Adjust for Under/(Over) payment in 2014-2015 | L21: -0.14
A24: Projected Revenue May 2016-Apr 2017 | E24: =+E14 -> 183627.2824 | G24: Projected Revenue May 2015-Apr 2016 | K24: =+K14 -> 234150
A25: Total Customers | E25: =+Customers!N21*12 -> 107280 | G25: Total Customers | K25: 100896
A26: Projected Value | F26: =ROUND(+E24/E25,2) -> 1.71 | G26: Projected Value | L26: =+K24/K25 -> 2.32070647
A29: Residential Commodity Adjustment | F29: =SUM(F20:F26) -> 1.06 | G29: Residential Commodity Adjustment | L29: =SUM(L20:L26) -> 2.18070647
C32: Customers | D32: Rebate | E32: Total | I32: Customers | J32: Rebate | K32: Total
A33: Actual Rebates paid: | G33: Actual Rebates paid:
A34: July , 2011- April, 2012 | C34: 72948 | D34: 2.31 | E34: =+D34*C34 -> 168509.88 | G34: July , 2011- April, 2012 | I34: 72948 | J34: 2.31 | K34: =+J34*I34 -> 168509.88
A35: May, 2012 - June, 2012 | C35: 15009 | D35: 2.31 | E35: =+D35*C35 -> 34670.79 | G35: May, 2012 - June, 2012 | I35: 15009 | J35: 2.31 | K35: =+J35*I35 -> 34670.79
A36: July , 2012- April, 2013 | C36: 77740 | D36: 4.15 | E36: 322621 | G36: July , 2012- April, 2013 | I36: 77740 | J36: 4.15 | K36: 322621
A37: May, 2013 - June, 2013 | C37: =+I37 -> 15970 | D37: =+D36 -> 4.15 | E37: 66275.5 | G37: May, 2013 - June, 2013 | I37: 15970 | J37: =+J36 -> 4.15 | K37: 66275.5
A38: July , 2013- April, 2014 | C38: =+I38 -> 81340 | D38: 2.49 | E38: 202536.6 | G38: July , 2013- April, 2014 | I38: 81340 | J38: 2.49 | K38: 202536.6
A39: May, 2014 - June, 2014 | C39: 16396 | D39: =+D38 -> 2.49 | E39: 40826.04 | G39: May, 2014 - June, 2014 | I39: =+I10 -> 16396 | J39: =+J38 -> 2.49 | K39: 40826.04
A40: July , 2014- April, 2015 | C40: 82912 | D40: =+J40 -> 1.74964 | E40: 145066.1517 | G40: July , 2014- April, 2015 | I40: =+I11 -> 82912 | J40: 1.74964 | K40: 145066.1517
A41: May, 2015 - June, 2016 | C41: =+C10 -> 17149 | D41: =+D40 -> 1.74964 | E41: 30004.57636 | K41: =SUM(K34:K40) -> 980505.9617
A42: July , 2015- April, 2016 | C42: =+C11 -> 87893 | D42: =+L29 -> 2.18070647 | E42: 191668.8338
E43: =SUM(E34:E42) -> 1202179.372 | G43: Projected Rebate:
G44: May, 2014 - June, 2014 | I44: 16816 | J44: =+J40 -> 1.74964 | K44: =+J44*I44 -> 29421.94624
A45: Projected Rebate:
A46: May, 2015 - June, 2015 | C46: =+Customers!N21*2 -> 17880 | D46: =+D42 -> 2.18070647 | E46: =+D46*C46 -> 38991.03168 | G46: Total Actual and Projected Rebates | K46: =+K44+K41 -> 1009927.908
A48: Total Actual and Projected Rebates | E48: =+E46+E43 -> 1241170.403 | G48: Actual Commodity Revenue:
G49: July , 2011- April, 2012 | I49: =+I34 -> 72948 | K49: 233294
A50: Actual Commodity Revenue: | G50: May, 2012 - April, 2013 | I50: =+I35+I36 -> 92749 | K50: 255765
A51: July , 2011- April, 2012 | C51: =+C34 -> 72948 | E51: =+K14 -> 234150 | G51: May, 2013 - April, 2014 | I51: =+I37+I38 -> 97310 | K51: 233294
A52: May, 2012 - April, 2013 | C52: =+C35+C36 -> 92749 | E52: =+K50 -> 255765 | G52: May, 2014 - April, 2015 | I52: =+I39+I40 -> 99308 | K52: 234150
A53: May, 2013 - April, 2014 | C53: =+C37+C38 -> 97310 | E53: =+K51 -> 233294 | K53: =SUM(K49:K52) -> 956503
A54: May, 2014 - April, 2015 | C54: =+C39+C40 -> 99308 | E54: 234150
A55: May, 2015 - April, 2016 | C55: =+C41+C42 -> 105042 | E55: =+E14 -> 183627.2824 | G55: Projected Commodity Revenue:
E56: =SUM(E51:E55) -> 1140986.282 | G56: May, 2015 - June, 2015 | I56: =+I44 -> 16816 | J56: =+L26 -> 2.32070647 | K56: =+J56*I56 -> 39025
K57: =+K56+K53 -> 995528
A58: Projected Commodity Revenue:
A59: May, 2016 - June, 2016 | C59: =+C46 -> 17880 | D59: =+F26 -> 1.71 | E59: =+D59*C59 -> 30574.8 | G59: Amount under (over) rebated | K59: =+K57-K46 -> -14399.90792
E60: =+E59+E56 -> 1171561.082
G61: Projected Customers (April, 2015 customers x 12) | K61: =+K25 -> 100896
A62: Amount under (over) rebated | E62: =+E60-E48 -> -69609.32105
G63: Amount under (over) rebated per customer | K63: =+K59/K61 -> -0.1427203053
A64: Projected Customers (April, 2016 customers x 12) | E64: =+E25 -> 107280
G65: Projected Commodity Value per customer (next 12 months) | K65: =+J56 -> 2.32070647
A66: Amount under (over) rebated per customer | E66: =ROUND(+E62/E64,2) -> -0.65
K67: =+K65+K63 -> 2.177986165
A68: Projected Commodity Value per customer (next 12 months) | E68: =+D59 -> 1.71
E70: =+E68+E66 -> 1.06

Sheet CRC Prices
A1: Cascade Recycling Center
A2: Monthly Price per ton of Commodities Sold
B5: Passback Price/ton schedule
I6: Natural | J6: Colored | K6: Mixed
A7: Month | B7: ONP 6 | C7: Mixed Paper | D7: OCC | E7: Alum. | F7: Tin | G7: Glass | H7: PET | I7: HDPE | J7: HDPE | K7: Plastics 3-7
A8: 2015-05-10 | B8: 78.47 | C8: 66.61 | D8: 113.05 | E8: 1088 | F8: 73.21 | G8: -53.34 | H8: 244 | I8: 700 | J8: 625 | K8: 93
A9: 2015-06-10 | B9: 88.25 | C9: 79.24 | D9: 129.06 | E9: 1057.98 | F9: 102.69 | G9: -53.34 | H9: 271 | I9: 720 | J9: 560 | K9: 125
A10: 2015-07-10 | B10: 92.65 | C10: 82.65 | D10: 131.09 | E10: 1064.83 | F10: 116.7 | G10: -53.34 | H10: 255 | I10: 750 | J10: 480 | K10: 80
A11: 2015-08-10 | B11: 82.81 | C11: 72.49 | D11: 117.23 | E11: 1079.27 | F11: 89.63 | G11: -53.34 | H11: 175 | I11: 603 | J11: 403 | K11: 45
A12: 2015-09-10 | B12: 82.64 | C12: 76.64 | D12: 124.44 | E12: 1104.04 | F12: 96.26 | G12: -53.34 | H12: 145 | I12: 510 | J12: 281 | K12: 0
A13: 2015-10-01 | B13: 77.92 | C13: 75.29 | D13: 117.13 | E13: 1097.89 | F13: 75.3 | G13: -53.34 | H13: 148.95 | I13: 555 | J13: 420 | K13: 10
A14: 2015-11-01 | B14: 68.95 | C14: 68.29 | D14: 113.12 | E14: 1013.28 | F14: 67.59 | G14: =+G13 -> -53.34 | H14: 149.81 | I14: 565 | J14: 470 | K14: 0
A15: 2015-12-01 | B15: 65.26 | C15: 62.26 | D15: 111.06 | E15: 1082.99 | F15: 69.92 | G15: -53.34 | H15: 151 | I15: 565 | J15: 450 | K15: 30
A16: 2016-01-01 | B16: 54.7 | C16: 50.7 | D16: 102.5 | E16: 1129.8 | F16: 72.84 | G16: -53.34 | H16: 129 | I16: 545 | J16: 442 | K16: 10
A17: 2016-02-01 | B17: 66.07 | C17: 50.07 | D17: 101.87 | E17: 1137.39 | F17: 71.96 | G17: -53.34 | H17: 136 | I17: 500 | J17: 370 | K17: 10
A18: 2016-03-01 | B18: 74.28 | C18: 58.28 | D18: 111.08 | E18: 1119.13 | F18: 73.08 | G18: -53.34 | H18: 161 | I18: 480 | J18: 320 | K18: 0
A19: 2016-04-01 | B19: 77.53 | C19: 69.53 | D19: 111.33 | E19: 1119.56 | F19: 89.16 | G19: -53.34 | H19: 183 | I19: 540 | J19: 410 | K19: 6.07
A20: Average | B20: =+'Commodity Revenue'!AA20 -> 75.79177644 | C20: =+'Commodity Revenue'!AB20 -> 67.74988986 | D20: =+'Commodity Revenue'!AC20 -> 115.364151 | E20: =+'Commodity Revenue'!AD20 -> 1091.111399 | F20: =+'Commodity Revenue'!AE20 -> 83.51987323 | G20: =+'Commodity Revenue'!AF20 -> -53.34 | H20: =+'Commodity Revenue'!AG20 -> 177.5871029 | I20: =+'Commodity Revenue'!AH20 -> 584.4803447 | J20: =+'Commodity Revenue'!AI20 -> 431.3079509 | K20: =+'Commodity Revenue'!AJ20 -> 67.27165095

Sheet CRC Composition
A1: Cascade Recycling Center
A2: Tonnage Delivered and Processed
A5: Stream Composition-CRC | AC5: %
B6: 2015-05-05 | D6: 2015-06-05 | F6: 2015-07-05 | H6: 2015-08-05 | J6: 2015-09-05 | L6: 2015-10-05 | N6: 2015-11-05 | P6: 2015-12-05 | R6: 2016-01-11 | T6: 2016-02-01 | V6: 2016-03-11 | X6: 2016-04-11 | Z6: Total 2016 | AC6: Excluding
B7: Tons | D7: Tons | F7: Tons | H7: Tons | J7: Tons | L7: Tons | N7: Tons | P7: Tons | R7: Tons | T7: Tons | V7: Tons | X7: Tons | Z7: Tons | AC7: Residue
A8: Newspaper | B8: 3892.03 | C8: =B8/B$19 -> 0.3635420228 | D8: 3839.15 | E8: =D8/D$19 -> 0.3797213573 | F8: 3836.93 | G8: =F8/F$19 -> 0.3598726682 | H8: 3362.77 | I8: =H8/H$19 -> 0.3377618009 | J8: 3825.88 | K8: =J8/J$19 -> 0.357347142 | L8: 3347.84 | M8: =L8/L$19 -> 0.3581435552 | N8: 4238.6 | O8: =N8/N$19 -> 0.4307791751 | P8: 5672.25 | Q8: =P8/P$19 -> 0.4676751911 | R8: 4435.64 | S8: =R8/R$19 -> 0.422382369 | T8: 3864.94 | U8: =T8/T$19 -> 0.4040432129 | V8: 4140.28 | W8: =V8/V$19 -> 0.3935522629 | X8: 2598.48 | Y8: =X8/X$19 -> 0.3239079165 | Z8: =+P8+N8+L8+J8+H8+F8+D8+B8+R8+T8+V8+X8 -> 47054.79 | AA8: =+Z8/$Z$19 -> 0.3854863318 | AC8: =+Z8/($Z$19-$Z$18) -> 0.4060674716
A9: Mix Paper | B9: 1345.94 | C9: =B9/B$19 -> 0.1257199328 | D9: 1056.64 | E9: 0.1045097938 | F9: 1357.6 | G9: =F9/F$19 -> 0.127331782 | H9: 1186.68 | I9: =H9/H$19 -> 0.1191919679 | J9: 1401.58 | K9: =J9/J$19 -> 0.1309112171 | L9: 1141.82 | M9: =L9/L$19 -> 0.1221490496 | N9: 1115.16 | O9: 0.1133364094 | P9: 1334.56 | Q9: 0.1100340435 | R9: 1271.58 | S9: 0.1210857898 | T9: 1097.84 | U9: 0.1147688711 | V9: 1300.65 | W9: 0.123632641 | X9: 1324.28 | Y9: =X9/X$19 -> 0.1650752654 | Z9: =+P9+N9+L9+J9+H9+F9+D9+B9+R9+T9+V9+X9 -> 14934.33 | AA9: =+Z9/$Z$19 -> 0.1223463135 | AC9: =+Z9/($Z$19-$Z$18) -> 0.128878391
A10: OCC | B10: 2871.43 | C10: 0.2682110545 | D10: 2346.14 | E10: 0.2320512263 | F10: 2749.88 | G10: =F10/F$19 -> 0.2579162645 | H10: 2479.82 | I10: =H10/H$19 -> 0.2490769422 | J10: 2655.05 | K10: =J10/J$19 -> 0.247988575 | L10: 2255.58 | M10: =L10/L$19 -> 0.2412963106 | N10: 1773.72 | O10: 0.1802674559 | P10: 2044.86 | Q10: 0.1685980504 | R10: 1932.07 | S10: 0.1839807341 | T10: 1837.71 | U10: 0.1921153376 | V10: 2199.3 | W10: 0.2090533712 | X10: 1674.52 | Y10: =X10/X$19 -> 0.2087336767 | Z10: 26820.08 | AA10: 0.2197177856 | AC10: 0.2314485321
A11: Aluminum | B11: 103.5 | C11: 0.009667602603 | D11: 75.48 | E11: 0.007465550461 | F11: 97.18 | G11: =F11/F$19 -> 0.009114689582 | H11: 74.19 | I11: =H11/H$19 -> 0.007451757928 | J11: 73.17 | K11: =J11/J$19 -> 0.006834268293 | L11: 51.43 | M11: =L11/L$19 -> 0.00550185285 | N11: 20.24 | O11: 0.002057040179 | P11: 29.57 | Q11: 0.002438037005 | R11: 45.25 | S11: 0.004308916457 | T11: 45.94 | U11: 0.004802595953 | V11: 39.3 | W11: 0.003735642017 | X11: 34.76 | Y11: =X11/X$19 -> 0.004332932782 | Z11: 690.01 | AA11: 0.005652759768 | AC11: 0.005954560972
A12: Glass | B12: 1553.93 | C12: 0.1451476107 | D12: 1943.22 | E12: 0.1921993504 | F12: 1742.11 | G12: =F12/F$19 -> 0.1633956768 | H12: 2055.48 | I12: =H12/H$19 -> 0.2064555787 | J12: 1949.66 | K12: =J12/J$19 -> 0.1821033145 | L12: 1845.05 | M12: 0.1973788373 | N12: 2036.12 | O12: 0.2069358029 | P12: 2253.33 | Q12: 0.185786335 | R12: 2103.23 | S12: 0.2002793892 | T12: 2035.84 | U12: 0.2128279701 | V12: 1932.15 | W12: 0.1836595604 | X12: 1446.56 | Y12: =X12/X$19 -> 0.1803178149 | Z12: 22896.68 | AA12: 0.1875761678 | AC12: 0.1975908713
A13: PET | B13: 176.88 | C13: 0.01652179274 | D13: 135.94 | E13: 0.01344550781 | F13: 164.4 | G13: =F13/F$19 -> 0.01541937608 | H13: 133.72 | I13: =H13/H$19 -> 0.01343104286 | J13: 114.91 | K13: =J13/J$19 -> 0.01073289285 | L13: 100.06 | M13: 0.0107041687 | N13: 35.04 | O13: 0.003561199994 | P13: 42.64 | Q13: 0.003515654308 | R13: 60.08 | S13: 0.005721098359 | T13: 67 | U13: 0.00700422135 | V13: 78.04 | W13: 0.007418053512 | X13: 66.18 | Y13: =X13/X$19 -> 0.008249525073 | Z13: 1174.89 | AA13: 0.009625035759 | AC13: 0.01013891703
A14: HDPE Natl | B14: 48.8 | C14: 0.004558251275 | D14: 10.11 | E14: 0.0009999564806 | F14: 0 | G14: =F14/F$19 -> 0 | H14: 1.74 | I14: =H14/H$19 -> 0.0001747682814 | J14: 5.61 | K14: =J14/J$19 -> 0.0005239885899 | L14: 5.61 | M14: 0.0006001437778 | N14: 27.47 | O14: 0.002791842575 | P14: 33.44 | Q14: 0.002757117262 | R14: 18.02 | S14: 0.001715948609 | T14: 15.31 | U14: 0.001600516849 | V14: 21.68 | W14: 0.002060781652 | X14: 19.46 | Y14: =X14/X$19 -> 0.002425744302 | Z14: 207.25 | AA14: 0.001697851425 | AC14: 0.001788499821
A15: HDPE Col | B15: 46.06 | C15: 0.004302316675 | D15: 35.05 | E15: 0.003466713615 | F15: 28.82 | G15: =F15/F$19 -> 0.002703080405 | H15: 22.93 | I15: =H15/H$19 -> 0.002303124535 | J15: 22.43 | K15: =J15/J$19 -> 0.002095020334 | L15: 25.25 | M15: 0.002701181887 | N15: 20.07 | O15: 0.002039762668 | P15: 14.04 | Q15: 0.001157593492 | R15: 19.79 | S15: 0.001884496281 | T15: 18.19 | U15: 0.001901593826 | V15: 26.24 | W15: 0.002494230192 | X15: 21 | Y15: =X15/X$19 -> 0.002617709679 | Z15: 299.87 | AA15: 0.002456621023 | AC15: 0.002587780175
A16: #3 - 7 | B16: 51.88 | C16: 0.004845944184 | D16: 40.6 | E16: 0.004015651149 | F16: 34.93 | G16: =F16/F$19 -> 0.003276148457 | H16: 42.6 | I16: =H16/H$19 -> 0.004278809647 | J16: 23.77 | K16: =J16/J$19 -> 0.002220179819 | L16: 15.9 | M16: 0.001700942258 | N16: 12.57 | O16: 0.001277519519 | P16: 7.96 | Q16: 0.000656299444 | R16: 19.68 | S16: 0.001874021566 | T16: 22.01 | U16: 0.002300938984 | V16: 40.22 | W16: 0.003823092161 | X16: 42.64 | Y16: =X16/X$19 -> 0.005315197176 | Z16: 354.76 | AA16: 0.002906295641 | AC16: 0.003061462951
A17: Tin | B17: 173.26 | C17: 0.01618366016 | D17: 118.75 | E17: 0.01174528507 | F17: 134 | G17: =F17/F$19 -> 0.01256810459 | H17: 124.47 | I17: =H17/H$19 -> 0.01250195861 | J17: 142 | K17: =J17/J$19 -> 0.0132631693 | L17: 127.18 | M17: 0.01360539851 | N17: 78.51 | O17: 0.007979161289 | P17: 109.32 | Q17: 0.009013398897 | R17: 147.82 | S17: 0.01407611118 | T17: 106.24 | U17: 0.01110639517 | V17: 104.34 | W17: 0.009917986974 | X17: 80.69 | Y17: =X17/X$19 -> 0.01005823781 | Z17: 1446.58 | AA17: 0.01185079814 | AC17: 0.01248351301
A18: Residue | B18: 442.15 | C18: 0.04129981151 | D18: 509.36 | E18: 0.05037960761 | F18: 516.06 | G18: =F18/F$19 -> 0.04840220936 | H18: 471.64 | I18: =H18/H$19 -> 0.0473722484 | J18: 492.28 | K18: =J18/J$19 -> 0.04598023227 | L18: 432.04 | M18: 0.04621855931 | N18: 481.88 | O18: 0.04897463052 | P18: 586.64 | Q18: 0.04836827963 | R18: 448.32 | S18: 0.04269112544 | T18: 454.64 | U18: 0.04752834619 | V18: 638.08 | W18: 0.06065237807 | X18: 713.71 | Y18: =X18/X$19 -> 0.08896597975 | Z18: 6186.8 | AA18: 0.05068403956
B19: =SUM(B8:B18) -> 10705.86 | C19: =SUM(C8:C18) -> 1 | D19: 10110.44 | E19: 1 | F19: 10661.91 | G19: 1 | H19: 9956.04 | I19: 1 | J19: 10706.34 | K19: 1 | L19: =SUM(L8:L18) -> 9347.76 | M19: 1 | N19: 9839.38 | O19: 1 | P19: 12128.61 | Q19: 1 | R19: 10501.48 | S19: 1 | T19: 9565.66 | U19: =SUM(U8:U18) -> 1 | V19: =SUM(V8:V18) -> 10520.28 | W19: 1 | X19: =SUM(X8:X18) -> 8022.28 | Y19: =SUM(Y8:Y18) -> 1 | Z19: =SUM(Z8:Z18) -> 122066.04 | AA19: 1 | AC19: =SUM(AC8:AC18) -> 1

Sheet Customers
A1: Waste Management of Skagit County
A2: Recycling Customers by Jurisdiction
C5: 2015-05-01 | D5: 2015-06-01 | E5: 2015-07-01 | F5: 2015-08-01 | G5: 2015-09-01 | H5: 2015-10-01 | I5: 2015-11-01 | J5: 2015-12-01 | K5: 2016-01-01 | L5: 2016-02-01 | M5: 2016-03-01 | N5: 2016-04-01 | O5: Total
A6: Contract Cities:
B7: Anacortes | C7: 0 | D7: 6577 | E7: 6578 | F7: 6343 | G7: 6365 | H7: 6370 | I7: 6388 | J7: 6399 | K7: 6401 | L7: 6400 | M7: 6414 | N7: 6425 | O7: =SUM(C7:N7) -> 70660 | Q7: New Anacortes contract added in June, 2015
B8: Burlington | C8: 2088 | D8: 2100 | E8: 2104 | F8: 2102 | G8: 2109 | H8: 2097 | I8: 2103 | J8: 2099 | K8: 2091 | L8: 2095 | M8: 2101 | N8: 2109 | O8: =SUM(C8:N8) -> 25198
B9: Darrington | C9: 508 | D9: 497 | E9: 499 | F9: 498 | G9: 502 | H9: 503 | I9: 505 | J9: 504 | K9: 502 | L9: 503 | M9: 501 | N9: 488 | O9: 6010
B10: Sedro-Woolley | C10: 3317 | D10: 321 | E10: 322 | F10: 0 | G10: 0 | H10: 0 | I10: 0 | J10: 0 | K10: 0 | L10: 0 | M10: 0 | N10: =+M10 -> 0 | O10: 3960 | Q10: Lost the Sedro-Wolley contract.
B11: Mount Vernon | C11: 8623 | D11: 8636 | E11: 8637 | F11: 8640 | G11: 8641 | H11: 8727 | I11: 8847 | J11: 8839 | K11: 8839 | L11: 8953 | M11: 8986 | N11: 8997 | O11: 105365
B12: Stanwood | C12: 1601 | D12: 1614 | E12: 1611 | F12: 1623 | G12: 1617 | H12: 1618 | I12: 1622 | J12: 1622 | K12: 1638 | L12: 1628 | M12: 1648 | N12: 1655 | O12: 19497
B13: Other | C13: 404 | D13: 411 | E13: 410 | F13: 414 | G13: 415 | H13: 409 | I13: 400 | J13: 399 | K13: 403 | L13: 413 | M13: 422 | N13: 432 | O13: 4932
B14: Total | C14: =SUM(C7:C13) -> 16541 | D14: =SUM(D7:D13) -> 20156 | E14: 20161 | F14: 19620 | G14: 19649 | H14: 19724 | I14: 19865 | J14: 19862 | K14: 19874 | L14: 19992 | M14: 20072 | N14: 20106 | O14: 235622
C15: =+C14/C$24 -> 0.6602402906 | D15: =+D14/D$24 -> 0.7000312576 | E15: 0.6993062782 | F15: 0.6916731298 | G15: 0.692061144 | H15: 0.6934570896 | I15: 0.6933440369 | J15: 0.6936266806 | K15: 0.6930292569 | L15: 0.6943595443 | M15: 0.692472228 | N15: 0.6922123528 | O15: 0.6916551206
A17: WUTC:
B18: Skagit County | C18: 4323 | D18: 4384 | E18: 4400 | F18: 4442 | G18: 4441 | H18: 4443 | I18: 4472 | J18: 4458 | K18: 4468 | L18: 4469 | M18: 4532 | N18: 4485 | O18: =SUM(C18:N18) -> 53317
B19: Island County | C19: 1678 | D19: 1719 | E19: 1738 | F19: 1765 | G19: 1768 | H19: 1751 | I19: 1767 | J19: 1770 | K19: 1776 | L19: 1775 | M19: 1806 | N19: 1862 | O19: 21175
B20: Snohomish County | C20: 2511 | D20: 2534 | E20: 2531 | F20: 2539 | G20: 2534 | H20: 2525 | I20: 2547 | J20: 2545 | K20: 2559 | L20: 2556 | M20: 2576 | N20: 2593 | O20: 30550
B21: Total | C21: =SUM(C18:C20) -> 8512 | D21: 8637 | E21: 8669 | F21: 8746 | G21: 8743 | H21: 8719 | I21: 8786 | J21: 8773 | K21: 8803 | L21: 8800 | M21: 8914 | N21: 8940 | O21: 105042
C22: =+C21/C$24 -> 0.3397597094 | D22: =+D21/D$24 -> 0.2999687424 | E22: 0.3006937218 | F22: 0.3083268702 | G22: 0.307938856 | H22: 0.3065429104 | I22: 0.3066559631 | J22: 0.3063733194 | K22: 0.3069707431 | L22: 0.3056404557 | M22: 0.307527772 | N22: 0.3077876472 | O22: 0.3083448794
B24: Grand Total | C24: =+C21+C14 -> 25053 | D24: =+D21+D14 -> 28793 | E24: 28830 | F24: 28366 | G24: 28392 | H24: 28443 | I24: 28651 | J24: 28635 | K24: 28677 | L24: 28792 | M24: 28986 | N24: 29046 | O24: 340664

Sheet Commodity Revenue
A1: Waste Management of Skagit County
A2: Single Stream Tonnage and Revenue
C4: Total Single Stream Tonnage Processed | O4: Total Single Stream Commodity Revenue | AA4: Average rate per ton
D5: Mixed | J5: Natural | K5: Colored | L5: Mixed | P5: Mixed | V5: Natural | W5: Colored | X5: Mixed | AB5: Mixed | AH5: Natural | AI5: Colored | AJ5: Mixed
C6: ONP 6 | D6: Paper | E6: OCC | F6: Alum. | G6: Tin | H6: Glass | I6: PET | J6: HDPE | K6: HDPE | L6: Plastics | M6: Total | O6: ONP 6 | P6: Paper | Q6: OCC | R6: Alum. | S6: Tin | T6: Glass | U6: PET | V6: HDPE | W6: HDPE | X6: Plastics | Y6: Total | AA6: ONP 6 | AB6: Paper | AC6: OCC | AD6: Alum. | AE6: Tin | AF6: Glass | AG6: PET | AH6: HDPE | AI6: HDPE | AJ6: Plastics
C7: =+'CRC Composition'!$AC8 -> 0.4060674716 | D7: =+'CRC Composition'!$AC9 -> 0.128878391 | E7: =+'CRC Composition'!$AC10 -> 0.2314485321 | F7: =+'CRC Composition'!$AC11 -> 0.005954560972 | G7: =+'CRC Composition'!AC17 -> 0.01248351301 | H7: =+'CRC Composition'!AC12 -> 0.1975908713 | I7: =+'CRC Composition'!AC13 -> 0.01013891703 | J7: =+'CRC Composition'!$AC14 -> 0.001788499821 | K7: =+'CRC Composition'!$AC15 -> 0.002587780175 | L7: =+'CRC Composition'!$AC16 -> 0.003061462951 | M7: =+M20/$M$20 -> 1
A8: May | C8: =+'Tonnages Collected'!$E10*C$7 -> 236.9105589 | D8: =+'Tonnages Collected'!$E10*D$7 -> 75.19107975 | E8: =+'Tonnages Collected'!$E10*E$7 -> 135.0332271 | F8: =+'Tonnages Collected'!$E10*F$7 -> 3.474049183 | G8: =+'Tonnages Collected'!$E10*G$7 -> 7.283213385 | H8: =+'Tonnages Collected'!$E10*H$7 -> 115.2797676 | I8: =+'Tonnages Collected'!$E10*I$7 -> 5.915313756 | J8: =+'Tonnages Collected'!$E10*J$7 -> 1.043458346 | K8: =+'Tonnages Collected'!$E10*K$7 -> 1.509779755 | L8: =+'Tonnages Collected'!$E10*L$7 -> 1.78613888 | M8: =SUM(C8:L8) -> 583.4265867 | O8: =+C8*'CRC Prices'!B8 -> 18590.37156 | P8: =+D8*'CRC Prices'!C8 -> 5008.477822 | Q8: =+E8*'CRC Prices'!D8 -> 15265.50632 | R8: =+F8*'CRC Prices'!E8 -> 3779.765512 | S8: =+G8*'CRC Prices'!F8 -> 533.2040519 | T8: =+H8*'CRC Prices'!G8 -> -6149.022805 | U8: =+I8*'CRC Prices'!H8 -> 1443.336557 | V8: =+J8*'CRC Prices'!I8 -> 730.4208421 | W8: =+K8*'CRC Prices'!J8 -> 943.6123468 | X8: =+L8*'CRC Prices'!K8 -> 166.1109158 | Y8: =SUM(O8:X8) -> 40311.78312 | AA8: =+O8/C8 -> 78.47 | AB8: =+P8/D8 -> 66.61 | AC8: 113.05 | AD8: 1088 | AE8: 73.21 | AF8: -53.34 | AG8: 244 | AH8: 700 | AI8: 625 | AJ8: =+Y8/M8 -> 69.09486822
A9: Jun | C9: =+'Tonnages Collected'!$E11*C$7 -> 267.5130479 | D9: =+'Tonnages Collected'!$E11*D$7 -> 84.90375022 | E9: =+'Tonnages Collected'!$E11*E$7 -> 152.4758977 | F9: =+'Tonnages Collected'!$E11*F$7 -> 3.922803145 | G9: =+'Tonnages Collected'!$E11*G$7 -> 8.224009179 | H9: =+'Tonnages Collected'!$E11*H$7 -> 130.1708212 | I9: =+'Tonnages Collected'!$E11*I$7 -> 6.679413613 | J9: =+'Tonnages Collected'!$E11*J$7 -> 1.178245173 | K9: =+'Tonnages Collected'!$E11*K$7 -> 1.704802799 | L9: =+'Tonnages Collected'!$E11*L$7 -> 2.016860109 | M9: 658.789651 | O9: =+C9*'CRC Prices'!B9 -> 23608.02648 | P9: =+D9*'CRC Prices'!C9 -> 6727.773168 | Q9: =+E9*'CRC Prices'!D9 -> 19678.53936 | R9: =+F9*'CRC Prices'!E9 -> 4150.247271 | S9: =+G9*'CRC Prices'!F9 -> 844.5235025 | T9: =+H9*'CRC Prices'!G9 -> -6943.311601 | U9: =+I9*'CRC Prices'!H9 -> 1810.121089 | V9: =+J9*'CRC Prices'!I9 -> 848.3365245 | W9: =+K9*'CRC Prices'!J9 -> 954.6895672 | X9: =+L9*'CRC Prices'!K9 -> 252.1075136 | Y9: =SUM(O9:X9) -> 51931.05287 | AA9: =+O9/C9 -> 88.25 | AB9: 79.24 | AC9: 129.06 | AD9: 1057.98 | AE9: 102.69 | AF9: -53.34 | AG9: 271 | AH9: 720 | AI9: 560 | AJ9: 78.82797307
A10: Jul | C10: =+'Tonnages Collected'!$E12*C$7 -> 338.2388115 | D10: =+'Tonnages Collected'!$E12*D$7 -> 107.3508144 | E10: =+'Tonnages Collected'!$E12*E$7 -> 192.787854 | F10: =+'Tonnages Collected'!$E12*F$7 -> 4.959923577 | G10: =+'Tonnages Collected'!$E12*G$7 -> 10.39829314 | H10: =+'Tonnages Collected'!$E12*H$7 -> 164.5857059 | I10: =+'Tonnages Collected'!$E12*I$7 -> 8.445333562 | J10: =+'Tonnages Collected'!$E12*J$7 -> 1.489752556 | K10: =+'Tonnages Collected'!$E12*K$7 -> 2.155522794 | L10: =+'Tonnages Collected'!$E12*L$7 -> 2.55008259 | M10: 832.9620941 | O10: =+C10*'CRC Prices'!B10 -> 31337.82589 | P10: =+D10*'CRC Prices'!C10 -> 8872.544813 | Q10: =+E10*'CRC Prices'!D10 -> 25272.55978 | R10: =+F10*'CRC Prices'!E10 -> 5281.475422 | S10: =+G10*'CRC Prices'!F10 -> 1213.480809 | T10: =+H10*'CRC Prices'!G10 -> -8779.001555 | U10: =+I10*'CRC Prices'!H10 -> 2153.560058 | V10: =+J10*'CRC Prices'!I10 -> 1117.314417 | W10: =+K10*'CRC Prices'!J10 -> 1034.650941 | X10: =+L10*'CRC Prices'!K10 -> 204.0066072 | Y10: 67708.41718 | AA10: 92.65 | AB10: 82.65 | AC10: 131.09 | AD10: 1064.83 | AE10: 116.7 | AF10: -53.34 | AG10: 255 | AH10: 750 | AI10: 480 | AJ10: 81.28631262
A11: Aug | C11: =+'Tonnages Collected'!$E13*C$7 -> 325.9787355 | D11: =+'Tonnages Collected'!$E13*D$7 -> 103.4596905 | E11: =+'Tonnages Collected'!$E13*E$7 -> 185.7999103 | F11: =+'Tonnages Collected'!$E13*F$7 -> 4.780142197 | G11: =+'Tonnages Collected'!$E13*G$7 -> 10.02138824 | H11: =+'Tonnages Collected'!$E13*H$7 -> 158.6200001 | I11: =+'Tonnages Collected'!$E13*I$7 -> 8.139217208 | J11: =+'Tonnages Collected'!$E13*J$7 -> 1.435753787 | K11: =+'Tonnages Collected'!$E13*K$7 -> 2.077391981 | L11: =+'Tonnages Collected'!$E13*L$7 -> 2.457650245 | M11: 802.76988 | O11: =+C11*'CRC Prices'!B11 -> 26994.29908 | P11: =+D11*'CRC Prices'!C11 -> 7499.792962 | Q11: =+E11*'CRC Prices'!D11 -> 21781.32349 | R11: =+F11*'CRC Prices'!E11 -> 5159.064069 | S11: =+G11*'CRC Prices'!F11 -> 898.217028 | T11: =+H11*'CRC Prices'!G11 -> -8460.790803 | U11: =+I11*'CRC Prices'!H11 -> 1424.363011 | V11: =+J11*'CRC Prices'!I11 -> 865.7595334 | W11: =+K11*'CRC Prices'!J11 -> 837.1889682 | X11: =+L11*'CRC Prices'!K11 -> 110.594261 | Y11: 57109.8116 | AA11: 82.81 | AB11: 72.49 | AC11: 117.23 | AD11: 1079.27 | AE11: 89.63 | AF11: -53.34 | AG11: 175 | AH11: 603 | AI11: 403 | AJ11: 71.14094964
A12: Sep | C12: =+'Tonnages Collected'!$E14*C$7 -> 312.3344695 | D12: =+'Tonnages Collected'!$E14*D$7 -> 99.12924991 | E12: =+'Tonnages Collected'!$E14*E$7 -> 178.0230123 | F12: =+'Tonnages Collected'!$E14*F$7 -> 4.580063098 | G12: =+'Tonnages Collected'!$E14*G$7 -> 9.601929938 | H12: =+'Tonnages Collected'!$E14*H$7 -> 151.9807527 | I12: =+'Tonnages Collected'!$E14*I$7 -> 7.798539635 | J12: =+'Tonnages Collected'!$E14*J$7 -> 1.375658436 | K12: =+'Tonnages Collected'!$E14*K$7 -> 1.990440024 | L12: =+'Tonnages Collected'!$E14*L$7 -> 2.354782083 | M12: 769.1688975 | O12: =+C12*'CRC Prices'!B12 -> 25811.32056 | P12: =+D12*'CRC Prices'!C12 -> 7597.265713 | Q12: =+E12*'CRC Prices'!D12 -> 22153.18365 | R12: =+F12*'CRC Prices'!E12 -> 5056.572863 | S12: =+G12*'CRC Prices'!F12 -> 924.2817759 | T12: =+H12*'CRC Prices'!G12 -> -8106.653347 | U12: =+I12*'CRC Prices'!H12 -> 1130.788247 | V12: =+J12*'CRC Prices'!I12 -> 701.5858021 | W12: =+K12*'CRC Prices'!J12 -> 559.3136469 | X12: =+L12*'CRC Prices'!K12 -> 0 | Y12: 55827.65891 | AA12: 82.64 | AB12: 76.64 | AC12: 124.44 | AD12: 1104.04 | AE12: 96.26 | AF12: -53.34 | AG12: 145 | AH12: 510 | AI12: 281 | AJ12: 72.58179456
A13: Oct | C13: =+'Tonnages Collected'!$E15*C$7 -> 294.5065026 | D13: =+'Tonnages Collected'!$E15*D$7 -> 93.47097919 | E13: =+'Tonnages Collected'!$E15*E$7 -> 167.861507 | F13: =+'Tonnages Collected'!$E15*F$7 -> 4.318634338 | G13: =+'Tonnages Collected'!$E15*G$7 -> 9.05385438 | H13: =+'Tonnages Collected'!$E15*H$7 -> 143.3057325 | I13: =+'Tonnages Collected'!$E15*I$7 -> 7.353401106 | J13: =+'Tonnages Collected'!$E15*J$7 -> 1.297136225 | K13: =+'Tonnages Collected'!$E15*K$7 -> 1.876826247 | L13: =+'Tonnages Collected'!$E15*L$7 -> 2.220371759 | M13: 725.2649453 | O13: =+C13*'CRC Prices'!B13 -> 22947.94668 | P13: =+D13*'CRC Prices'!C13 -> 7037.430023 | Q13: =+E13*'CRC Prices'!D13 -> 19661.61831 | R13: =+F13*'CRC Prices'!E13 -> 4741.385453 | S13: =+G13*'CRC Prices'!F13 -> 681.7552348 | T13: =+H13*'CRC Prices'!G13 -> -7643.927771 | U13: =+I13*'CRC Prices'!H13 -> 1095.289095 | V13: =+J13*'CRC Prices'!I13 -> 719.9106048 | W13: =+K13*'CRC Prices'!J13 -> 788.2670239 | X13: =+L13*'CRC Prices'!K13 -> 22.20371759 | Y13: 50051.87838 | AA13: 77.92 | AB13: 75.29 | AC13: 117.13 | AD13: 1097.89 | AE13: 75.3 | AF13: -53.34 | AG13: 148.95 | AH13: 555 | AI13: 420 | AJ13: 69.01185381
A14: Nov | C14: =+'Tonnages Collected'!$E16*C$7 -> 293.3890246 | D14: =+'Tonnages Collected'!$E16*D$7 -> 93.1163121 | E14: =+'Tonnages Collected'!$E16*E$7 -> 167.2245718 | F14: =+'Tonnages Collected'!$E16*F$7 -> 4.302247674 | G14: =+'Tonnages Collected'!$E16*G$7 -> 9.019500356 | H14: =+'Tonnages Collected'!$E16*H$7 -> 142.761972 | I14: =+'Tonnages Collected'!$E16*I$7 -> 7.325499297 | J14: =+'Tonnages Collected'!$E16*J$7 -> 1.29221436 | K14: =+'Tonnages Collected'!$E16*K$7 -> 1.869704802 | L14: =+'Tonnages Collected'!$E16*L$7 -> 2.211946762 | M14: 722.5129937 | O14: =+C14*'CRC Prices'!B14 -> 20229.17324 | P14: =+D14*'CRC Prices'!C14 -> 6358.912953 | Q14: =+E14*'CRC Prices'!D14 -> 18916.44356 | R14: =+F14*'CRC Prices'!E14 -> 4359.381523 | S14: =+G14*'CRC Prices'!F14 -> 609.6280291 | T14: =+H14*'CRC Prices'!G14 -> -7614.923585 | U14: =+I14*'CRC Prices'!H14 -> 1097.43305 | V14: =+J14*'CRC Prices'!I14 -> 730.1011134 | W14: =+K14*'CRC Prices'!J14 -> 878.7612567 | X14: =+L14*'CRC Prices'!K14 -> 0 | Y14: 45564.91115 | AA14: 68.95 | AB14: 68.29 | AC14: 113.12 | AD14: 1013.28 | AE14: 67.59 | AF14: -53.34 | AG14: 149.81 | AH14: 565 | AI14: 470 | AJ14: 63.06448679
A15: Dec | C15: =+'Tonnages Collected'!$E17*C$7 -> 339.3212735 | D15: =+'Tonnages Collected'!$E17*D$7 -> 107.6943681 | E15: =+'Tonnages Collected'!$E17*E$7 -> 193.4048309 | F15: =+'Tonnages Collected'!$E17*F$7 -> 4.975796767 | G15: =+'Tonnages Collected'!$E17*G$7 -> 10.43157068 | H15: =+'Tonnages Collected'!$E17*H$7 -> 165.1124278 | I15: =+'Tonnages Collected'!$E17*I$7 -> 8.472361072 | J15: =+'Tonnages Collected'!$E17*J$7 -> 1.494520195 | K15: =+'Tonnages Collected'!$E17*K$7 -> 2.16242109 | L15: =+'Tonnages Collected'!$E17*L$7 -> 2.558243592 | M15: 835.6278137 | O15: =+C15*'CRC Prices'!B15 -> 22144.10631 | P15: =+D15*'CRC Prices'!C15 -> 6705.051357 | Q15: =+E15*'CRC Prices'!D15 -> 21479.54052 | R15: =+F15*'CRC Prices'!E15 -> 5388.73814 | S15: =+G15*'CRC Prices'!F15 -> 729.3754221 | T15: =+H15*'CRC Prices'!G15 -> -8807.096899 | U15: =+I15*'CRC Prices'!H15 -> 1279.326522 | V15: =+J15*'CRC Prices'!I15 -> 844.4039103 | W15: =+K15*'CRC Prices'!J15 -> 973.0894905 | X15: =+L15*'CRC Prices'!K15 -> 76.74730776 | Y15: 50813.28208 | AA15: 65.26 | AB15: 62.26 | AC15: 111.06 | AD15: 1082.99 | AE15: 69.92 | AF15: -53.34 | AG15: 151 | AH15: 565 | AI15: 450 | AJ15: 60.80850978
A16: Jan., '16 | C16: =+'Tonnages Collected'!$E18*C$7 -> 300.5287048 | D16: =+'Tonnages Collected'!$E18*D$7 -> 95.38231605 | E16: =+'Tonnages Collected'!$E18*E$7 -> 171.294015 | F16: =+'Tonnages Collected'!$E18*F$7 -> 4.406943726 | G16: =+'Tonnages Collected'!$E18*G$7 -> 9.238991689 | H16: =+'Tonnages Collected'!$E18*H$7 -> 146.2361129 | I16: =+'Tonnages Collected'!$E18*I$7 -> 7.503766778 | J16: =+'Tonnages Collected'!$E18*J$7 -> 1.323660653 | K16: =+'Tonnages Collected'!$E18*K$7 -> 1.915204439 | L16: =+'Tonnages Collected'!$E18*L$7 -> 2.265774925 | M16: 740.0954909 | O16: =+C16*'CRC Prices'!B16 -> 16438.92015 | P16: =+D16*'CRC Prices'!C16 -> 4835.883424 | Q16: =+E16*'CRC Prices'!D16 -> 17557.63654 | R16: =+F16*'CRC Prices'!E16 -> 4978.965022 | S16: =+G16*'CRC Prices'!F16 -> 672.9681546 | T16: =+H16*'CRC Prices'!G16 -> -7800.234263 | U16: =+I16*'CRC Prices'!H16 -> 967.9859143 | V16: =+J16*'CRC Prices'!I16 -> 721.3950559 | W16: =+K16*'CRC Prices'!J16 -> 846.5203621 | X16: =+L16*'CRC Prices'!K16 -> 22.65774925 | Y16: 39242.69811 | AA16: 54.7 | AB16: 50.7 | AC16: 102.5 | AD16: 1129.8 | AE16: 72.84 | AF16: -53.34 | AG16: 129 | AH16: 545 | AI16: 442 | AJ16: 53.02383083
A17: Feb | C17: =+'Tonnages Collected'!$E19*C$7 -> 291.9284347 | D17: =+'Tonnages Collected'!$E19*D$7 -> 92.65274759 | E17: =+'Tonnages Collected'!$E19*E$7 -> 166.3920713 | F17: =+'Tonnages Collected'!$E19*F$7 -> 4.28082963 | G17: =+'Tonnages Collected'!$E19*G$7 -> 8.974598232 | H17: =+'Tonnages Collected'!$E19*H$7 -> 142.0512546 | I17: =+'Tonnages Collected'!$E19*I$7 -> 7.289030483 | J17: =+'Tonnages Collected'!$E19*J$7 -> 1.28578128 | K17: =+'Tonnages Collected'!$E19*K$7 -> 1.860396778 | L17: =+'Tonnages Collected'!$E19*L$7 -> 2.200934942 | M17: 718.9160796 | O17: =+C17*'CRC Prices'!B17 -> 19287.71168 | P17: =+D17*'CRC Prices'!C17 -> 4639.123072 | Q17: =+E17*'CRC Prices'!D17 -> 16950.36031 | R17: =+F17*'CRC Prices'!E17 -> 4868.972813 | S17: =+G17*'CRC Prices'!F17 -> 645.8120888 | T17: =+H17*'CRC Prices'!G17 -> -7577.013919 | U17: =+I17*'CRC Prices'!H17 -> 991.3081457 | V17: =+J17*'CRC Prices'!I17 -> 642.8906398 | W17: =+K17*'CRC Prices'!J17 -> 688.346808 | X17: =+L17*'CRC Prices'!K17 -> 22.00934942 | Y17: 41159.52099 | AA17: 66.07 | AB17: 50.07 | AC17: 101.87 | AD17: 1137.39 | AE17: 71.96 | AF17: -53.34 | AG17: 136 | AH17: 500 | AI17: 370 | AJ17: 57.2521914
A18: Mar | C18: =+'Tonnages Collected'!$E20*C$7 -> 307.012231 | D18: =+'Tonnages Collected'!$E20*D$7 -> 97.44006873 | E18: =+'Tonnages Collected'!$E20*E$7 -> 174.9894665 | F18: =+'Tonnages Collected'!$E20*F$7 -> 4.502017956 | G18: =+'Tonnages Collected'!$E20*G$7 -> 9.438311235 | H18: =+'Tonnages Collected'!$E20*H$7 -> 149.3909719 | I18: =+'Tonnages Collected'!$E20*I$7 -> 7.665651044 | J18: =+'Tonnages Collected'!$E20*J$7 -> 1.352216955 | K18: =+'Tonnages Collected'!$E20*K$7 -> 1.95652255 | L18: =+'Tonnages Collected'!$E20*L$7 -> 2.31465615 | M18: 756.0621139 | O18: =+C18*'CRC Prices'!B18 -> 22804.86852 | P18: =+D18*'CRC Prices'!C18 -> 5678.807206 | Q18: =+E18*'CRC Prices'!D18 -> 19437.82993 | R18: =+F18*'CRC Prices'!E18 -> 5038.343355 | S18: =+G18*'CRC Prices'!F18 -> 689.751785 | T18: =+H18*'CRC Prices'!G18 -> -7968.514439 | U18: =+I18*'CRC Prices'!H18 -> 1234.169818 | V18: =+J18*'CRC Prices'!I18 -> 649.0641386 | W18: =+K18*'CRC Prices'!J18 -> 626.0872159 | X18: =+L18*'CRC Prices'!K18 -> 0 | Y18: 48190.40753 | AA18: 74.28 | AB18: 58.28 | AC18: 111.08 | AD18: 1119.13 | AE18: 73.08 | AF18: -53.34 | AG18: 161 | AH18: 480 | AI18: 320 | AJ18: 63.73868845
A19: Apr | C19: =+'Tonnages Collected'!$E21*C$7 -> 287.0707348 | D19: =+'Tonnages Collected'!$E21*D$7 -> 91.11100244 | E19: =+'Tonnages Collected'!$E21*E$7 -> 163.6233011 | F19: =+'Tonnages Collected'!$E21*F$7 -> 4.209596466 | G19: =+'Tonnages Collected'!$E21*G$7 -> 8.825260585 | H19: =+'Tonnages Collected'!$E21*H$7 -> 139.6875164 | I19: =+'Tonnages Collected'!$E21*I$7 -> 7.167740746 | J19: =+'Tonnages Collected'!$E21*J$7 -> 1.264385832 | K19: =+'Tonnages Collected'!$E21*K$7 -> 1.829439707 | L19: =+'Tonnages Collected'!$E21*L$7 -> 2.164311303 | M19: 706.9532894 | O19: =+C19*'CRC Prices'!B19 -> 22256.59407 | P19: =+D19*'CRC Prices'!C19 -> 6334.948 | Q19: =+E19*'CRC Prices'!D19 -> 18216.18211 | R19: =+F19*'CRC Prices'!E19 -> 4712.89582 | S19: =+G19*'CRC Prices'!F19 -> 786.8602337 | T19: =+H19*'CRC Prices'!G19 -> -7450.932127 | U19: =+I19*'CRC Prices'!H19 -> 1311.696557 | V19: =+J19*'CRC Prices'!I19 -> 682.768349 | W19: =+K19*'CRC Prices'!J19 -> 750.0702799 | X19: =+L19*'CRC Prices'!K19 -> 13.13736961 | Y19: 47614.22066 | AA19: 77.53 | AB19: 69.53 | AC19: 111.33 | AD19: 1119.56 | AE19: 89.16 | AF19: -53.34 | AG19: 183 | AH19: 540 | AI19: 410 | AJ19: 67.35129658
C20: =SUM(C8:C19) -> 3594.732529 | D20: =SUM(D8:D19) -> 1140.902379 | E20: 2048.909665 | F20: 52.71304776 | G20: 110.510921 | H20: 1749.183036 | I20: 89.7552683 | J20: 15.8327838 | K20: 22.90845297 | L20: 27.10175334 | M20: 8852.549836 | O20: =SUM(O8:O19) -> 272451.1642 | P20: =SUM(P8:P19) -> 77296.01051 | Q20: 236370.7239 | R20: 57515.80726 | S20: 9229.858116 | T20: -93301.42311 | U20: 15939.37806 | V20: 9253.950931 | W20: 9880.597907 | X20: 889.5747913 | Y20: =SUM(Y8:Y19) -> 595525.6426 | AA20: =+O20/C20 -> 75.79177644 | AB20: =+P20/D20 -> 67.74988986 | AC20: =+Q20/E20 -> 115.364151 | AD20: =+R20/F20 -> 1091.111399 | AE20: =+S20/G20 -> 83.51987323 | AF20: =+T20/H20 -> -53.34 | AG20: =+U20/I20 -> 177.5871029 | AH20: =+V20/J20 -> 584.4803447 | AI20: =+W20/K20 -> 431.3079509 | AJ20: 67.27165095
C23: Total Single Stream Tonnage Processed | O23: Total Single Stream Commodity Revenue
B24: % | D24: Mixed | J24: Natural | K24: Colored | L24: Mixed | P24: Mixed | V24: Natural | W24: Colored | X24: Mixed | AB24: lbs./
B25: Reg. | C25: =+C6 -> ONP 6 | D25: Paper | E25: =+E6 -> OCC | F25: Alum. | G25: Tin | H25: Glass | I25: PET | J25: HDPE | K25: HDPE | L25: Plastics | M25: Total | O25: =+O6 -> ONP 6 | P25: Paper | Q25: =+Q6 -> OCC | R25: Alum. | S25: Tin | T25: Glass | U25: PET | V25: HDPE | W25: HDPE | X25: Plastics | Y25: Total | AA25: Customers | AB25: Customer
A28: May | B28: =+Customers!C$22 -> 0.3397597094 | C28: =+C8*$B28 -> 80.49266266 | D28: =+D8*$B28 -> 25.54689941 | E28: =+E8*$B28 -> 45.87885 | F28: 1.180341941 | G28: 2.474542463 | H28: 39.16742035 | I28: 2.009785283 | J28: 0.3545251044 | K28: 0.5129623308 | L28: 0.6068580267 | M28: =SUM(C28:L28) -> 198.2248476 | O28: =+O8*$B$40 -> 5732.245877 | P28: 1544.33849 | Q28: 4707.040706 | R28: 1165.471341 | S28: 164.4107391 | T28: -1896.019695 | U28: 445.0454365 | V28: 225.2215265 | W28: 290.9580353 | X28: 51.2194503 | Y28: =SUM(O28:X28) -> 12429.93191 | AA28: =+Customers!C$21 -> 8512 | AB28: =+M28*2000/AA28 -> 46.57538712
A29: Jun | B29: =+Customers!D$22 -> 0.2999687424 | C29: =+C9*$B29 -> 80.24555256 | D29: 25.46847118 | E29: =+E9*$B29 -> 45.73800328 | F29: 1.176718326 | G29: 2.466945691 | H29: 39.04717752 | I29: 2.003615301 | J29: 0.3534367228 | K29: 0.5113875515 | L29: 0.6049949904 | M29: =SUM(C29:L29) -> 197.6163031 | O29: =+O9*$B$40 -> 7279.414078 | P29: 2074.474406 | Q29: 6067.776845 | R29: 1279.707494 | S29: 260.4044976 | T29: -2140.934578 | U29: 558.1415689 | V29: 261.5802234 | W29: 294.3736395 | X29: 77.73606088 | Y29: =SUM(O29:X29) -> 16012.67423 | AA29: =+Customers!D$21 -> 8637 | AB29: =+M29*2000/AA29 -> 45.76040364
A30: =+A10 -> Jul | B30: =+Customers!E$22 -> 0.3006937218 | C30: 101.7062871 | D30: 32.27971593 | E30: =+E10*$B30 -> 57.97009733 | F30: 1.49141788 | G30: 3.126701464 | H30: 49.48988848 | I30: 2.539458781 | J30: 0.4479592407 | K30: 0.6481521713 | L30: 0.766793825 | M30: 250.4664722 | O30: =+O10*$B$40 -> 9662.858144 | P30: 2735.803761 | Q30: 7792.664397 | R30: 1628.515902 | S30: 374.1705938 | T30: -2706.960176 | U30: 664.0392165 | V30: 344.5181792 | W30: 319.0293196 | X30: 62.9043927 | Y30: 20877.54373 | AA30: =+Customers!E$21 -> 8669 | AB30: =+M30*2000/AA30 -> 57.78439779
A31: Aug | B31: =+Customers!F$22 -> 0.3083268702 | C31: 100.5080033 | D31: 31.89940255 | E31: =+E11*$B31 -> 57.28710484 | F31: 1.473846283 | G31: 3.089863271 | H31: 48.90680817 | I31: 2.509539368 | J31: 0.4426814714 | K31: 0.6405157676 | L31: 0.7577596082 | M31: 247.5155246 | O31: =+O11*$B$40 -> 8323.553896 | P31: 2312.522756 | Q31: 6716.159565 | R31: 1590.770988 | S31: 276.9606212 | T31: -2608.84152 | U31: 439.195041 | V31: 266.9525189 | W31: 258.1429315 | X31: 34.10117409 | Y31: 17609.51797 | AA31: =+Customers!F$21 -> 8746 | AB31: =+M31*2000/AA31 -> 56.60085172
A32: Sep | B32: =+Customers!G$22 -> 0.307938856 | C32: 96.17991922 | D32: 30.52574782 | E32: =+E12*$B32 -> 54.82020275 | F32: 1.410379391 | G32: 2.956807321 | H32: 46.80077911 | I32: 2.401473374 | J32: 0.4236186849 | K32: 0.6129338241 | L32: 0.7251289007 | M32: 236.8569904 | O32: =+O12*$B$40 -> 7958.788525 | P32: 2342.57798 | Q32: 6830.820741 | R32: 1559.16835 | S32: 284.9975527 | T32: -2499.645049 | U32: 348.6727657 | V32: 216.3303896 | W32: 172.461499 | X32: 0 | Y32: 17214.17275 | AA32: =+Customers!G$21 -> 8743 | AB32: =+M32*2000/AA32 -> 54.18208633
A33: Oct | B33: =+Customers!H$22 -> 0.3065429104 | C33: 90.27888043 | D33: 28.652866 | E33: =+E13*$B33 -> 51.45675489 | F33: 1.323846739 | G33: 2.775394872 | H33: 43.92935631 | I33: 2.254132976 | J33: 0.3976279135 | K33: 0.5753277801 | L33: 0.6806392213 | M33: 222.3248271 | O33: =+O13*$B$40 -> 7075.881853 | P33: 2169.955512 | Q33: 6062.559328 | R33: 1461.981926 | S33: 210.2157357 | T33: -2356.965987 | U33: 337.7267838 | V33: 221.9807486 | W33: 243.0581004 | X33: 6.846402624 | Y33: 15433.2404 | AA33: =+Customers!H$21 -> 8719 | AB33: =+M33*2000/AA33 -> 50.9977812
A34: Nov | B34: =+Customers!I$22 -> 0.3066559631 | C34: 89.9694939 | D34: 28.55467237 | E34: =+E14*$B34 -> 51.28041213 | F34: 1.319309904 | G34: 2.765883569 | H34: 43.77881001 | I34: 2.246408042 | J34: 0.3962652391 | K34: 0.5733561267 | L34: 0.6783066646 | M34: 221.562918 | O34: =+O14*$B$40 -> 6237.561984 | P34: 1960.738248 | Q34: 5832.78851 | R34: 1344.19297 | S34: 187.9756811 | T34: -2348.022694 | U34: 338.3878614 | V34: 225.1229398 | W34: 270.9615337 | X34: 0 | Y34: 14049.70703 | AA34: =+Customers!I$21 -> 8786 | AB34: =+M34*2000/AA34 -> 50.43544684
A35: Dec | B35: =+Customers!J$22 -> 0.3063733194 | C35: 103.9589849 | D35: 32.99468103 | E35: =+E15*$B35 -> 59.25408001 | F35: 1.524451372 | G35: 3.195954936 | H35: 50.58604257 | I35: 2.595705384 | J35: 0.4578811131 | K35: 0.6625081272 | L35: 0.783777581 | M35: 256.014067 | O35: =+O15*$B$40 -> 6828.02179 | P35: 2067.468252 | Q35: 6623.10633 | R35: 1661.589812 | S35: 224.8991766 | T35: -2715.623231 | U35: 394.4737821 | V35: 260.3676219 | W35: 300.0471616 | X35: 23.66463936 | Y35: 15668.01533 | AA35: =+Customers!J$21 -> 8773 | AB35: =+M35*2000/AA35 -> 58.36408686
A36: Jan., '16 | B36: =+Customers!K$22 -> 0.3069707431 | C36: 92.25351982 | D36: 29.27958044 | E36: =+E16*$B36 -> 52.58225107 | F36: 1.35280279 | G36: 2.836100144 | H36: 44.89020825 | I36: 2.303436864 | J36: 0.4063250943 | K36: 0.5879117299 | L36: 0.6955266125 | M36: 227.1876628 | O36: =+O16*$B$40 -> 5068.856851 | P36: 1491.119891 | Q36: 5413.807321 | R36: 1535.238369 | S36: 207.5062845 | T36: -2405.162293 | U36: 298.4735 | V36: 222.4384715 | W36: 261.020219 | X36: 6.986400961 | Y36: 12100.28502 | AA36: =+Customers!K$21 -> 8803 | AB36: =+M36*2000/AA36 -> 51.61596338
A37: Feb | B37: =+Customers!L$22 -> 0.3056404557 | C37: 89.22513982 | D37: 28.31842799 | E37: =+E17*$B37 -> 50.8561485 | F37: 1.308394719 | G37: 2.743000293 | H37: 43.41661018 | I37: 2.227822598 | J37: 0.3929867762 | K37: 0.5686125191 | L37: 0.6726947587 | M37: 219.7298382 | O37: =+O17*$B$40 -> 5947.267133 | P37: 1430.449844 | Q37: 5226.556805 | R37: 1501.322835 | S37: 199.1328506 | T37: -2336.333443 | U37: 305.6647907 | V37: 198.2320368 | W37: 212.2482135 | X37: 6.786470193 | Y37: 12691.32754 | AA37: =+Customers!L$21 -> 8800 | AB37: =+M37*2000/AA37 -> 49.93859958
A38: Mar | B38: =+Customers!M$22 -> 0.307527772 | C38: 94.41478738 | D38: 29.96552724 | E38: =+E18*$B38 -> 53.81412075 | F38: 1.384495552 | G38: 2.902542826 | H38: 45.94187274 | I38: 2.357400587 | J38: 0.4158442676 | K38: 0.6016850206 | L38: 0.7118210489 | M38: 232.5100974 | O38: =+O18*$B$40 -> 7031.764433 | P38: 1751.031123 | Q38: 5993.555327 | R38: 1553.547374 | S38: 212.681431 | T38: -2457.050624 | U38: 380.5499437 | V38: 200.1356036 | W38: 193.0507871 | X38: 0 | Y38: 14859.2654 | AA38: =+Customers!M$21 -> 8914 | AB38: =+M38*2000/AA38 -> 52.16739902
A39: Apr | B39: =+Customers!N$22 -> 0.3077876472 | C39: 88.35682603 | D39: 28.04284107 | E39: =+E19*$B39 -> 50.36123087 | F39: 1.295661792 | G39: 2.716306191 | H39: 42.99409202 | I39: 2.20614206 | J39: 0.3891623402 | K39: 0.5630789431 | L39: 0.6661482838 | M39: 217.5914896 | O39: =+O19*$B$40 -> 6862.706814 | P39: 1953.348777 | Q39: 5616.866476 | R39: 1453.197293 | S39: 242.6243239 | T39: -2297.456768 | U39: 404.4549165 | V39: 210.5281242 | W39: 231.28033 | X39: 4.050840648 | Y39: 14681.60113 | AA39: =+Customers!N$21 -> 8940 | AB39: =+M39*2000/AA39 -> 48.67818559
B40: =+Customers!O22 -> 0.3083448794 | C40: =SUM(C28:C39) -> 1107.590057 | D40: =SUM(D28:D39) -> 351.528833 | E40: 631.2992564 | F40: 16.24166669 | G40: 34.05004304 | H40: 538.9490657 | I40: 27.65492062 | J40: 4.878313968 | K40: 7.058431892 | L40: 8.350449522 | M40: 2727.601038 | O40: =SUM(O28:O39) -> 84008.92138 | P40: =SUM(P28:P39) -> 23833.82904 | Q40: 72883.70235 | R40: 17734.70465 | S40: 2845.979488 | T40: -28769.01606 | U40: 4914.825607 | V40: 2853.408384 | W40: 3046.63177 | X40: 274.2958318 | Y40: =SUM(Y28:Y39) -> 183627.2824 | AA40: =SUM(AA28:AA39) -> 105042 | AB40: =+M40*2000/AA40 -> 51.93353207

Sheet Tonnages Collected
A1: WM of Skagit County
A2: Residential Recycling Tons Collected
D5: Less:
C6: Res'l | D6: CRC
C7: Collected | D7: Residual | E7: Net
A8: Month | C8: Tons | D8: Rate | E8: Tons
A10: May | C10: =+'Tonnages by day'!E28 -> 608.56 | D10: =+'CRC Composition'!C18 -> 0.04129981151 | E10: =+C10-C10*D10 -> 583.4265867
A11: Jun | C11: =+'Tonnages by day'!E50 -> 693.74 | D11: =+'CRC Composition'!E18 -> 0.05037960761 | E11: =+C11-C11*D11 -> 658.789651
A12: Jul | C12: =+'Tonnages by day'!E73 -> 875.33 | D12: =+'CRC Composition'!G18 -> 0.04840220936 | E12: 832.9620941
A13: Aug | C13: =+'Tonnages by day'!E94 -> 842.69 | D13: =+'CRC Composition'!I18 -> 0.0473722484 | E13: 802.76988
A14: Sep | C14: =+'Tonnages by day'!E116 -> 806.24 | D14: =+'CRC Composition'!K18 -> 0.04598023227 | E14: 769.1688975
A15: Oct | C15: =+'Tonnages by day'!E138 -> 760.41 | D15: =+'CRC Composition'!M18 -> 0.04621855931 | E15: 725.2649453
A16: Nov | C16: =+'Tonnages by day'!E159 -> 759.72 | D16: =+'CRC Composition'!O18 -> 0.04897463052 | E16: 722.5129937
A17: Dec | C17: =+'Tonnages by day'!E182 -> 878.1 | D17: =+'CRC Composition'!Q18 -> 0.04836827963 | E17: 835.6278137
A18: Jan | C18: =+'Tonnages by day'!E203 -> 773.1 | D18: =+'CRC Composition'!S18 -> 0.04269112544 | E18: 740.0954909
A19: Feb | C19: =+'Tonnages by day'!E224 -> 754.79 | D19: =+'CRC Composition'!U18 -> 0.04752834619 | E19: 718.9160796
A20: Mar | C20: =+'Tonnages by day'!E247 -> 804.88 | D20: =+'CRC Composition'!W18 -> 0.06065237807 | E20: 756.0621139
A21: Apr | C21: =+'Tonnages by day'!E268 -> 775.99 | D21: =+'CRC Composition'!Y18 -> 0.08896597975 | E21: 706.9532894
C22: =SUM(C10:C21) -> 9333.55 | D22: =(+C22-E22)/C22 -> 0.05153453554 | E22: =SUM(E10:E21) -> 8852.549836

Sheet Tonnages by day
A1: WM of Skagit
A2: Report for Residential Sideload Recycling
A3: Report Dates:5/1/2015-4/30/2016
A6: Landfill Name WSK - SKAGIT YARD - No Charge
A7: Date | B7: Tons | C7: Loads | D7: Tons/Load
A8: 2015-05-01 | B8: 23.81 | C8: 5 | D8: =+B8/C8 -> 4.762
A9: 2015-05-04 | B9: 32.25 | C9: 7 | D9: =+B9/C9 -> 4.607142857
A10: 2015-05-05 | B10: 30.19 | C10: 7 | D10: 4.312857143
A11: 2015-05-06 | B11: 40.05 | C11: 9 | D11: 4.45
A12: 2015-05-07 | B12: 38.04 | C12: 8 | D12: 4.755
A13: 2015-05-08 | B13: 39.63 | C13: 10 | D13: 3.963
A14: 2015-05-11 | B14: 13.14 | C14: 3 | D14: 4.38
A15: 2015-05-12 | B15: 28.02 | C15: 6 | D15: 4.67
A16: 2015-05-13 | B16: 30.62 | C16: 8 | D16: 3.8275
A17: 2015-05-14 | B17: 23.29 | C17: 5 | D17: 4.658
A18: 2015-05-15 | B18: 24.35 | C18: 6 | D18: 4.058333333
A19: 2015-05-18 | B19: 30.57 | C19: 7 | D19: 4.367142857
A20: 2015-05-19 | B20: 33.27 | C20: 9 | D20: 3.696666667
A21: 2015-05-20 | B21: 38.84 | C21: 9 | D21: 4.315555556
A22: 2015-05-21 | B22: 35.33 | C22: 9 | D22: 3.925555556
A23: 2015-05-22 | B23: 33.61 | C23: 8 | D23: 4.20125
A24: 2015-05-25 | B24: 19.63 | C24: 4 | D24: 4.9075
A25: 2015-05-26 | B25: 25.47 | C25: 5 | D25: 5.094
A26: 2015-05-27 | B26: 23.61 | C26: 6 | D26: 3.935
A27: 2015-05-28 | B27: 27.54 | C27: 8 | D27: 3.4425
A28: 2015-05-29 | B28: 17.3 | C28: 5 | D28: 3.46 | E28: =SUM(B8:B28) -> 608.56
A29: 2015-06-01 | B29: 41.31 | C29: 9 | D29: 4.59
A30: 2015-06-02 | B30: 33.92 | C30: 8 | D30: 4.24
A31: 2015-06-03 | B31: 40.54 | C31: 9 | D31: 4.504444444
A32: 2015-06-04 | B32: 37.78 | C32: 9 | D32: 4.197777778
A33: 2015-06-05 | B33: 37.66 | C33: 11 | D33: 3.423636364
A34: 2015-06-08 | B34: 17.01 | C34: 4 | D34: 4.2525
A35: 2015-06-09 | B35: 27.14 | C35: 5 | D35: 5.428
A36: 2015-06-10 | B36: 31.58 | C36: 8 | D36: 3.9475
A37: 2015-06-11 | B37: 24.46 | C37: 6 | D37: 4.076666667
A38: 2015-06-12 | B38: 25.05 | C38: 7 | D38: 3.578571429
A39: 2015-06-15 | B39: 28.5 | C39: 7 | D39: 4.071428571
A40: 2015-06-16 | B40: 34.62 | C40: 8 | D40: 4.3275
A41: 2015-06-17 | B41: 40.15 | C41: 9 | D41: 4.461111111
A42: 2015-06-18 | B42: 35.72 | C42: 9 | D42: 3.968888889
A43: 2015-06-19 | B43: 39.58 | C43: 10 | D43: 3.958
A44: 2015-06-22 | B44: 13.17 | C44: 3 | D44: 4.39
A45: 2015-06-23 | B45: 30.15 | C45: 7 | D45: 4.307142857
A46: 2015-06-24 | B46: 30.59 | C46: 8 | D46: 3.82375
A47: 2015-06-25 | B47: 19.83 | C47: 5 | D47: 3.966
A48: 2015-06-26 | B48: 23.29 | C48: 5 | D48: 4.658
A49: 2015-06-29 | B49: 41.52 | C49: 12 | D49: 3.46
A50: 2015-06-30 | B50: 40.17 | C50: 11 | D50: 3.651818182 | E50: =SUM(B29:B50) -> 693.74
A51: 2015-07-01 | B51: 46.3 | C51: 14 | D51: 3.307142857
A52: 2015-07-02 | B52: 44.55 | C52: 14 | D52: 3.182142857
A53: 2015-07-03 | B53: 12 | C53: 3 | D53: 4
A54: 2015-07-06 | B54: 37.37 | C54: 9 | D54: 4.152222222
A55: 2015-07-07 | B55: 32.76 | C55: 10 | D55: 3.276
A56: 2015-07-08 | B56: 24.9 | C56: 8 | D56: 3.1125
A57: 2015-07-09 | B57: 36.13 | C57: 10 | D57: 3.613
A58: 2015-07-10 | B58: 32.97 | C58: 11 | D58: 2.997272727
A59: 2015-07-13 | B59: 43.31 | C59: 13 | D59: 3.331538462
A60: 2015-07-14 | B60: 36.22 | C60: 12 | D60: 3.018333333
A61: 2015-07-15 | B61: 64.25 | C61: 17 | D61: 3.779411765
A62: 2015-07-16 | B62: 42.36 | C62: 12 | D62: 3.53
A63: 2015-07-17 | B63: 37.23 | C63: 11 | D63: 3.384545455
A64: 2015-07-20 | B64: 19.78 | C64: 5 | D64: 3.956
A65: 2015-07-21 | B65: 25.26 | C65: 8 | D65: 3.1575
A66: 2015-07-22 | B66: 34.45 | C66: 10 | D66: 3.445
A67: 2015-07-23 | B67: 32.48 | C67: 8 | D67: 4.06
A68: 2015-07-24 | B68: 31.51 | C68: 8 | D68: 3.93875
A69: 2015-07-27 | B69: 42.78 | C69: 10 | D69: 4.278
A70: 2015-07-28 | B70: 38.86 | C70: 9 | D70: 4.317777778
A71: 2015-07-29 | B71: 56.82 | C71: 17 | D71: 3.342352941
A72: 2015-07-30 | B72: 51.36 | C72: 13 | D72: 3.950769231
A73: 2015-07-31 | B73: 51.68 | C73: 15 | D73: =+B73/C73 -> 3.445333333 | E73: =SUM(B51:B73) -> 875.33
A74: 2015-08-03 | B74: 23.13 | C74: 7 | D74: 3.304285714
A75: 2015-08-04 | B75: 30.98 | C75: 8 | D75: 3.8725
A76: 2015-08-05 | B76: 35.59 | C76: 9 | D76: 3.954444444
A77: 2015-08-06 | B77: 35.03 | C77: 11 | D77: 3.184545455
A78: 2015-08-07 | B78: 29.99 | C78: 9 | D78: 3.332222222
A79: 2015-08-10 | B79: 33.98 | C79: 10 | D79: 3.398
A80: 2015-08-11 | B80: 43.57 | C80: 11 | D80: 3.960909091
A81: 2015-08-12 | B81: 51.07 | C81: 15 | D81: 3.404666667
A82: 2015-08-13 | B82: 48.91 | C82: 13 | D82: 3.762307692
A83: 2015-08-14 | B83: 59.27 | C83: 13 | D83: 4.559230769
A84: 2015-08-17 | B84: 22.83 | C84: 7 | D84: 3.261428571
A85: 2015-08-18 | B85: 33.59 | C85: 10 | D85: 3.359
A86: 2015-08-19 | B86: 42.87 | C86: 9 | D86: 4.763333333
A87: 2015-08-20 | B87: 38.13 | C87: 12 | D87: 3.1775
A88: 2015-08-21 | B88: 35.1 | C88: 9 | D88: 3.9
A89: 2015-08-24 | B89: 35.06 | C89: 9 | D89: 3.895555556
A90: 2015-08-25 | B90: 44.14 | C90: 13 | D90: 3.395384615
A91: 2015-08-26 | B91: 60.67 | C91: 18 | D91: 3.370555556
A92: 2015-08-27 | B92: 50.59 | C92: 14 | D92: 3.613571429
A93: 2015-08-28 | B93: 70.24 | C93: 15 | D93: 4.682666667
A94: 2015-08-31 | B94: 17.95 | C94: 5 | D94: 3.59 | E94: =SUM(B74:B94) -> 842.69
A95: 2015-09-01 | B95: 27.57 | C95: 8 | D95: 3.44625
A96: 2015-09-02 | B96: 33.9 | C96: 7 | D96: 4.842857143
A97: 2015-09-03 | B97: 23.03 | C97: 5 | D97: 4.606
A98: 2015-09-04 | B98: 31.88 | C98: 8 | D98: 3.985
A99: 2015-09-07 | B99: 15 | C99: 4 | D99: 3.75
A100: 2015-09-08 | B100: 67.23 | C100: 16 | D100: 4.201875
A101: 2015-09-09 | B101: 53.69 | C101: 13 | D101: 4.13
A102: 2015-09-10 | B102: 49.46 | C102: 12 | D102: 4.121666667
A103: 2015-09-11 | B103: 51.58 | C103: 13 | D103: 3.967692308
A104: 2015-09-14 | B104: 22.04 | C104: 5 | D104: 4.408
A105: 2015-09-15 | B105: 21.83 | C105: 6 | D105: 3.638333333
A106: 2015-09-16 | B106: 33.05 | C106: 7 | D106: 4.721428571
A107: 2015-09-17 | B107: 25.99 | C107: 6 | D107: 4.331666667
A108: 2015-09-18 | B108: 31.97 | C108: 8 | D108: 3.99625
A109: 2015-09-21 | B109: 55.1 | C109: 9 | D109: 6.122222222
A110: 2015-09-22 | B110: 40.14 | C110: 10 | D110: 4.014
A111: 2015-09-23 | B111: 49.55 | C111: 14 | D111: 3.539285714
A112: 2015-09-24 | B112: 50.01 | C112: 14 | D112: 3.572142857
A113: 2015-09-25 | B113: 51.59 | C113: 12 | D113: 4.299166667
A114: 2015-09-28 | B114: 16.89 | C114: 5 | D114: 3.378
A115: 2015-09-29 | B115: 20.34 | C115: 6 | D115: 3.39
A116: 2015-09-30 | B116: 34.4 | C116: 12 | D116: 2.866666667 | E116: =SUM(B95:B116) -> 806.24
A117: 2015-10-01 | B117: 28.16 | C117: 7 | D117: 4.022857143
A118: 2015-10-02 | B118: 28.76 | C118: 9 | D118: 3.195555556
A119: 2015-10-05 | B119: 36.37 | C119: 10 | D119: 3.637
A120: 2015-10-06 | B120: 33.63 | C120: 10 | D120: 3.363
A121: 2015-10-07 | B121: 47.74 | C121: 12 | D121: 3.978333333
A122: 2015-10-08 | B122: 43.06 | C122: 10 | D122: 4.306
A123: 2015-10-09 | B123: 45.82 | C123: 12 | D123: 3.818333333
A124: 2015-10-12 | B124: 26.77 | C124: 7 | D124: 3.824285714
A125: 2015-10-13 | B125: 27.18 | C125: 8 | D125: 3.3975
A126: 2015-10-14 | B126: 34.65 | C126: 9 | D126: 3.85
A127: 2015-10-15 | B127: 32.61 | C127: 7 | D127: 4.658571429
A128: 2015-10-16 | B128: 26.67 | C128: 8 | D128: 3.33375
A129: 2015-10-19 | B129: 30.02 | C129: 7 | D129: 4.288571429
A130: 2015-10-20 | B130: 34.83 | C130: 9 | D130: 3.87
A131: 2015-10-21 | B131: 44.8 | C131: 11 | D131: 4.072727273
A132: 2015-10-22 | B132: 41.88 | C132: 10 | D132: 4.188
A133: 2015-10-23 | B133: 43.53 | C133: 12 | D133: 3.6275
A134: 2015-10-26 | B134: 22.62 | C134: 7 | D134: 3.231428571
A135: 2015-10-27 | B135: 32.54 | C135: 11 | D135: 2.958181818
A136: 2015-10-28 | B136: 32.88 | C136: 8 | D136: 4.11
A137: 2015-10-29 | B137: 34.44 | C137: 8 | D137: =+B137/C137 -> 4.305
A138: 2015-10-30 | B138: 31.45 | C138: 9 | D138: 3.494444444 | E138: =SUM(B117:B138) -> 760.41
A139: 2015-11-02 | B139: 35.61 | C139: 8 | D139: 4.45125
A140: 2015-11-03 | B140: 36.65 | C140: 9 | D140: 4.072222222
A141: 2015-11-04 | B141: 49.64 | C141: 12 | D141: 4.136666667
A142: 2015-11-05 | B142: 41.84 | C142: 9 | D142: 4.648888889
A143: 2015-11-06 | B143: 50.28 | C143: 12 | D143: 4.19
A144: 2015-11-09 | B144: 26.66 | C144: 6 | D144: 4.443333333
A145: 2015-11-10 | B145: 29.27 | C145: 8 | D145: 3.65875
A146: 2015-11-11 | B146: 22.85 | C146: 5 | D146: 4.57
A147: 2015-11-12 | B147: 40.64 | C147: 9 | D147: 4.515555556
A148: 2015-11-13 | B148: 22.13 | C148: 6 | D148: 3.688333333
A149: 2015-11-16 | B149: 48.4 | C149: 10 | D149: 4.84
A150: 2015-11-17 | B150: 36.69 | C150: 8 | D150: 4.58625
A151: 2015-11-18 | B151: 48.29 | C151: 9 | D151: 5.365555556
A152: 2015-11-19 | B152: 40.54 | C152: 8 | D152: 5.0675
A153: 2015-11-20 | B153: 52.96 | C153: 13 | D153: 4.073846154
A154: 2015-11-23 | B154: 26.65 | C154: 7 | D154: 3.807142857
A155: 2015-11-24 | B155: 25.91 | C155: 8 | D155: 3.23875
A156: 2015-11-25 | B156: 41.49 | C156: 9 | D156: 4.61
A157: 2015-11-27 | B157: 19.75 | C157: 5 | D157: 3.95
A158: 2015-11-28 | B158: 17.65 | C158: 5 | D158: 3.53
A159: 2015-11-30 | B159: 45.82 | C159: 13 | D159: 3.524615385 | E159: =SUM(B139:B159) -> 759.72
A160: 2015-12-01 | B160: 43.23 | C160: 9 | D160: 4.803333333
A161: 2015-12-02 | B161: 44.67 | C161: 10 | D161: 4.467
A162: 2015-12-03 | B162: 53.12 | C162: 13 | D162: 4.086153846
A163: 2015-12-04 | B163: 48.49 | C163: 10 | D163: 4.849
A164: 2015-12-07 | B164: 26.87 | C164: 6 | D164: 4.478333333
A165: 2015-12-08 | B165: 27.83 | C165: 8 | D165: 3.47875
A166: 2015-12-09 | B166: 39.17 | C166: 11 | D166: 3.560909091
A167: 2015-12-10 | B167: 33.13 | C167: 10 | D167: 3.313
A168: 2015-12-11 | B168: 35 | C168: 9 | D168: 3.888888889
A169: 2015-12-14 | B169: 24.98 | C169: 7 | D169: 3.568571429
A170: 2015-12-15 | B170: 33.31 | C170: 8 | D170: 4.16375
A171: 2015-12-16 | B171: 38.47 | C171: 8 | D171: 4.80875
A172: 2015-12-17 | B172: 48.66 | C172: 11 | D172: 4.423636364
A173: 2015-12-18 | B173: 44.19 | C173: 10 | D173: 4.419
A174: 2015-12-21 | B174: 27.84 | C174: 6 | D174: 4.64
A175: 2015-12-22 | B175: 24.7 | C175: 6 | D175: 4.116666667
A176: 2015-12-23 | B176: 37.4 | C176: 9 | D176: 4.155555556
A177: 2015-12-24 | B177: 27.58 | C177: 7 | D177: 3.94
A178: 2015-12-26 | B178: 19.5 | C178: 4 | D178: 4.875
A179: 2015-12-28 | B179: 43.92 | C179: 13 | D179: 3.378461538
A180: 2015-12-29 | B180: 41.76 | C180: 9 | D180: 4.64
A181: 2015-12-30 | B181: 55.74 | C181: 12 | D181: 4.645
A182: 2015-12-31 | B182: 58.54 | C182: 13 | D182: 4.503076923 | E182: =SUM(B160:B182) -> 878.1
A183: 2016-01-02 | B183: 7.5 | C183: 2 | D183: 3.75
A184: 2016-01-04 | B184: 52.66 | C184: 15 | D184: 3.510666667
A185: 2016-01-05 | B185: 36.64 | C185: 10 | D185: 3.664
A186: 2016-01-06 | B186: 38.12 | C186: 11 | D186: 3.465454545
A187: 2016-01-07 | B187: 32.8 | C187: 10 | D187: 3.28
A188: 2016-01-08 | B188: 28 | C188: 6 | D188: 4.666666667
A189: 2016-01-11 | B189: 52.85 | C189: 9 | D189: 5.872222222
A190: 2016-01-12 | B190: 35.77 | C190: 9 | D190: 3.974444444
A191: 2016-01-13 | B191: 47.6 | C191: 11 | D191: 4.327272727
A192: 2016-01-14 | B192: 42.85 | C192: 11 | D192: 3.895454545
A193: 2016-01-15 | B193: 48.39 | C193: 14 | D193: 3.456428571
A194: 2016-01-18 | B194: 17.41 | C194: 5 | D194: 3.482
A195: 2016-01-19 | B195: 29.72 | C195: 8 | D195: 3.715
A196: 2016-01-20 | B196: 36.77 | C196: 11 | D196: 3.342727273
A197: 2016-01-21 | B197: 28.58 | C197: 9 | D197: 3.175555556
A198: 2016-01-22 | B198: 34.45 | C198: 9 | D198: 3.827777778
A199: 2016-01-25 | B199: 33.55 | C199: 7 | D199: 4.792857143
A200: 2016-01-26 | B200: 33.73 | C200: 9 | D200: 3.747777778
A201: 2016-01-27 | B201: 41.79 | C201: 10 | D201: =+B201/C201 -> 4.179
A202: 2016-01-28 | B202: 45.66 | C202: 9 | D202: 5.073333333
... 67 more rows
